[Event "Chessable English Open-ch 2022"]
[Site "Kenilwoth"]
[Date "2022.05.21"]
[Round "5.15"]
[White "Wells, Daniel J"]
[Black "Pert, Max"]
[Result "1-0"]
[ECO "B01"]
[WhiteElo "2020"]
[BlackElo "1634"]
[Annotator "TA"]
[PlyCount "93"]
[EventDate "2022.05.18"]
[EventType "swiss"]
[EventCountry "ENG"]
[SourceTitle "playchess.com"]
[Source "ChessBase"]
[SourceQuality "1"]
[TimeControl "5400+30"]

{[%evp 11,93,11,13,0,0,0,0,0,-11,-81,-81,-87,-82,-124,-77,-60,0,0,0,-8,16,-5,8,-35,19,15,75,65,56,47,68,11,10,0,0,0,0,0,0,0,0,0,0,0,0,-6,0,0,49,0,230,214,198,86,100,93,246,239,373,370,359,323,323,271,612,503,507,370,357,345,540,542,513,514,629,595,879,843,756,686,739,660,29997,29998]} 1. e4 {[%emt 0:00:02]} d5 {[%emt 0:00:09]} 2. exd5 {[%emt 0:00:07]} Nf6 {[%emt 0:00:06]} 3. d4 {[%emt 0:00:40]} Bg4 {[%emt 0:00:42]} 4. Be2 {[%emt 0:02:57]} Bxe2 {[%emt 0:01:11]} 5. Nxe2 {[%emt 0:03:54]} Qxd5 {[%emt 0:01:07]} 6. O-O {[%emt 0:00:36]} Nc6 {[%emt 0:01:37]} 7. Na3 {[%emt 0:14:24] B01: Scandinavian Defence.} O-O-O {[%emt 0:03:20][%cal Rc6d4]} 8. c4 {[%emt 0:02:38]} Qh5 {[%emt 0:00:52]} 9. Nc2 {[%emt 0:07:56] The position is equal.} e6 {[%emt 0:02:57] [#]} 10. Nf4 $146 {[%emt 0:09:23]} (10. b4) (10. b4 $11) ({Predecessor:} 10. Bf4 g5 11. Bg3 Qg6 12. b4 Ne4 13. b5 Nxg3 14. bxc6 Nxf1 15. cxb7+ Kb8 16. Kxf1 {0-1 (69) Zareba,R (2093)-Janiszewski,M (2129) Jastrzebia Gora 2016}) 10... Qxd1 $17 {[%emt 0:01:46]} 11. Rxd1 {[%emt 0:00:04]} e5 {[%emt 0:00:11]} 12. Ne2 {[%emt 0:03:28][%cal Bf4e2,Be2d4,Bd4f5][%mdl 32]} exd4 {[%emt 0:00:39]} ({Better is} 12... Nxd4 $1 13. Ncxd4 c5) 13. Nexd4 {[%emt 0:01:02]} Ne5 {[%emt 0:03:31]} ({Black should try} 13... Na5 $15) 14. b3 $1 $11 {[%emt 0:11:07]} Bc5 {[%emt 0:12:18]} (14... c5 15. Bf4 Ng6) (14... c5 $5 15. Bf4 Ng6 $11) 15. Bg5 {[%emt 0:09:37]} Rhg8 {[%emt 0:09:43]} (15... Rd7 16. Nf5 Ne4) 16. Nf5 {[%emt 0:06:33]} Neg4 {[%emt 0:05:12]} 17. Nce3 {[%emt 0:03:26] And now Rxd8+ would win.} Nxe3 {[%emt 0:02:39]} ({Black should play} 17... Rde8 $15) 18. Bxe3 {[%emt 0:01:32]} Ba3 {[%emt 0:04:46] [#]} (18... Rxd1+ $11 19. Rxd1 Bb4) 19. Rxd8+ $1 $16 {[%emt 0:07:51]} (19. Bxa7 b6 20. Ne3 Kb7 21. Bxb6 Kxb6) ({Avoid the trap} 19. Bxa7 $2 b6 20. Ne3 Bc5 21. Rxd8+ Rxd8 $19) 19... Rxd8 {[%emt 0:01:33]} 20. Nxg7 {[%emt 0:00:23]} Ng4 {[%emt 0:00:49]} 21. Nf5 {[%emt 0:01:04]} (21. Bxa7 Bb2 22. Re1 Bxg7) (21. Rf1) (21. Bxa7 $2 Bb2 22. Re1 Bxg7 $17) (21. Rf1 $1 $14) 21... Nxe3 $11 {[%emt 0:00:18]} 22. Nxe3 {[%emt 0:01:03][%mdl 4096] Endgame KRB-KRN} Rd2 {[%emt 0:00:15]} 23. Rd1 {[%emt 0:04:56]} Rxa2 {[%emt 0:00:43]} 24. g4 {[%emt 0:00:48]} Bc5 {[%emt 0:01:38]} 25. Rd3 {[%emt 0:00:19]} a5 {[%emt 0:01:38]} 26. Kg2 {[%emt 0:01:04]} Ra3 {[%emt 0:01:25] aiming for ...a4.} 27. Nc2 {[%emt 0:00:26]} Ra2 {[%emt 0:00:46]} 28. Ne3 {[%emt 0:00:42]} b6 {[%emt 0:15:04]} 29. g5 {[%emt 0:03:09]} Kb7 {[%emt 0:01:26]} (29... a4 $11 30. bxa4 Rxa4) 30. h4 {[%emt 0:01:07]} (30. Ng4 $1 $14) 30... Kc6 $2 {[%emt 0:02:50] [#]} (30... a4 $11 {and Black is okay.} 31. bxa4 Rxa4) 31. Ng4 $1 $18 {[%emt 0:00:48]} Re2 {[%emt 0:01:14]} 32. Kf3 {[%emt 0:01:07] Prevents Re4.} (32. Rf3 $18 {has better winning chances.}) 32... Rb2 {[%emt 0:00:32]} (32... Rc2) 33. h5 {[%emt 0:00:57][%cal Bh4h5,Bh5h6][%mdl 32] Threatens to win with h6.} Ra2 $2 {[%emt 0:01:23] Black cannot hold the game after this.} (33... b5 $16) 34. h6 {[%emt 0:00:47]} Rb2 {[%emt 0:00:39]} (34... Rc2 {is a better defense.} 35. Kg2 Be7) 35. Kg3 {[%emt 0:00:11]} Bd6+ {[%emt 0:01:16]} 36. f4 {[%emt 0:00:35] Strongly threatening Nf6.} Rb1 {[%emt 0:02:50]} 37. Nf6 {[%emt 0:01:03]} Rh1 $2 {[%emt 0:00:32]} (37... Rg1+ $2 38. Kh4 $16) (37... a4 38. bxa4 Rg1+ 39. Kh4 Bxf4 40. Nxh7 Be5) 38. Rf3 {[%emt 0:00:31]} Rg1+ {[%emt 0:00:43]} 39. Kf2 {[%emt 0:00:16]} Bc5+ {[%emt 0:00:40]} 40. Ke2 {[%emt 0:00:13]} Rg2+ {[%emt 0:00:37]} (40... Rb1 $142 41. Nxh7 Rb2+ 42. Ke1 Rh2) 41. Kd3 {[%emt 0:00:09]} Kd6 {[%emt 0:01:19]} 42. Nxh7 {[%emt 0:01:35]} Rh2 {[%emt 0:00:24] Inhibits Rh3.} 43. Ke4 {[%emt 0:00:30]} Ke6 {[%emt 0:00:28]} 44. f5+ {[%emt 0:00:15]} Ke7 {[%emt 0:00:27]} 45. Nf6 {[%emt 0:00:07]} Ba3 {[%emt 0:00:48]} 46. Kd5 {[%emt 0:01:06] White wants to mate with Re3+.} Bb2 {[%emt 0:00:52]} 47. Re3+ {[%emt 0:00:15] Weighted Error Value: White=0.22 (precise) /Black=0.62} 1-0

[Event "Chessable English Open-ch 2022"]
[Site "Kenilwoth"]
[Date "2022.05.21"]
[Round "5.16"]
[White "Herring, Samuel"]
[Black "Larkin, Benjamin"]
[Result "1/2-1/2"]
[ECO "A05"]
[WhiteElo "1900"]
[BlackElo "1853"]
[Annotator "TA"]
[PlyCount "92"]
[EventDate "2022.05.18"]
[EventType "swiss"]
[EventCountry "ENG"]
[SourceTitle "playchess.com"]
[Source "ChessBase"]
[SourceQuality "1"]
[TimeControl "5400+30"]

{[%evp 14,92,-15,-12,-6,-20,-12,-13,-18,-24,-28,-58,-58,-65,-43,-36,91,91,119,110,118,118,131,111,105,114,105,54,112,120,116,111,97,99,164,144,138,79,79,72,71,31,79,56,56,56,56,47,47,47,50,50,49,43,43,43,51,51,51,51,66,67,68,40,40,40,40,40,40,40,40,40,40,40,40,0,40,40,40,0,40]} 1. Nf3 {[%emt 0:00:03]} Nf6 {[%emt 0:00:03]} 2. g3 {[%emt 0:00:05]} g6 {[%emt 0:00:02]} 3. b3 {[%emt 0:00:05]} Bg7 {[%emt 0:00:03]} 4. Bb2 {[%emt 0:00:06]} O-O {[%emt 0:00:04]} 5. Bg2 {[%emt 0:00:04]} d5 {[%emt 0:00:04]} 6. O-O {[%emt 0:02:40]} c5 {[%emt 0:00:03]} 7. c4 {[%emt 0:00:05]} d4 {[%emt 0:00:04]} 8. b4 {[%emt 0:00:39]} Re8 {[%emt 0:00:02] A05: Réti Opening: 1 Nf3 Nf6.} 9. d3 {[%emt 0:02:23] 9.bxc5 is more advanced technology.} e5 {[%emt 0:00:10]} 10. bxc5 {[%emt 0:02:52]} Na6 {[%emt 0:00:04][%cal Bb8a6,Ba6c5,Bc5a4][%mdl 32]} 11. Nbd2 {[%emt 0:06:44]} Nxc5 {[%emt 0:00:02] [#]} 12. Nb3 $146 {[%emt 0:10:29]} (12. Ba3 Qa5 (12... Qc7 13. Rb1 h6 14. Nb3 Ne6 15. Nfd2 Bd7 16. e3 dxe3 17. fxe3 Bc6 18. Bxc6 bxc6) 13. Qc1) ({Predecessor:} 12. Ba3 Qc7 13. Rb1 h6 14. Nb3 Ne6 15. Nfd2 Bd7 16. e3 dxe3 17. fxe3 Bc6 18. Bxc6 bxc6 {0-1 (45) Yang,K (2275)-Sorokin,A (2521) Las Vegas 2021}) 12... Na4 {[%emt 0:00:12]} 13. Ba3 {[%emt 0:03:16][%cal Bb2a3,Ba3d6,Bd6e5,Be5d4][%mdl 32]} Rb8 {[%emt 0:13:39]} (13... Bd7 $5 {[%cal Rb7b5]}) 14. Qc2 {[%emt 0:07:25][%cal Ob3d4]} Bd7 {[%emt 0:05:09]} (14... b5) (14... b5 $15 {keeps the upper hand.}) 15. Bd6 $1 $16 {[%emt 0:04:24][%csl LRb8,LRe5]} Rc8 {[%emt 0:09:34]} 16. Bxe5 {[%emt 0:01:52]} b5 {[%emt 0:02:59]} 17. Bxd4 {[%emt 0:06:14] c5 is the strong threat.} bxc4 {[%emt 0:01:36]} 18. dxc4 {[%emt 0:00:46]} Bf5 {[%emt 0:00:38]} 19. Qc1 {[%emt 0:02:52]} Rxe2 {[%emt 0:02:53]} 20. Nfd2 {[%emt 0:04:53]} (20. Rd1 $16) 20... Bh6 {[%emt 0:14:28] [#]} (20... Ng4 21. Bxg7 Kxg7) ({Black should try} 20... Ne4 $14 21. Bxg7 Nxd2) 21. Qa3 $1 {[%emt 0:13:46]} Rxd2 {[%emt 0:22:21]} 22. Bxf6 {[%emt 0:01:57]} Qxf6 {[%emt 0:00:02]} 23. Nxd2 {[%emt 0:00:59]} Bxd2 {[%emt 0:00:03]} (23... Nc3 $16) 24. Qxa4 $18 {[%emt 0:00:30]} Bd3 {[%emt 0:00:03] [#]} 25. Bd5 {[%emt 0:04:38]} Bc3 $16 {[%emt 0:01:11] A strong pair of Bishops.} 26. Rad1 {[%emt 0:02:39]} ({Worse is} 26. Qd7 Bf5 27. Qxf7+ Qxf7 28. Bxf7+ Kxf7 $17) 26... Bxf1 {[%emt 0:00:54]} 27. Rxf1 {[%emt 0:00:02]} Rc7 {[%emt 0:01:37]} (27... Bd4 $14) 28. Qe8+ {[%emt 0:00:51]} Kg7 {[%emt 0:00:06]} 29. Qe4 {[%emt 0:01:04]} Re7 {[%emt 0:00:28]} 30. Qf3 {[%emt 0:00:53]} Qxf3 {[%emt 0:01:53]} 31. Bxf3 $14 {[%emt 0:00:01][%mdl 4096] Endgame KRB-KRB} Re1 {[%emt 0:00:07]} 32. c5 {[%emt 0:01:02]} f5 {[%emt 0:01:49]} 33. c6 {[%emt 0:01:06]} Rxf1+ {[%emt 0:00:03]} 34. Kxf1 {[%emt 0:00:04] Threatens to win with c7. KB-KB} Be5 {[%emt 0:00:16]} 35. Ke2 {[%emt 0:00:34]} Kf6 {[%emt 0:01:56]} 36. Bd5 {[%emt 0:03:35]} h5 {[%emt 0:03:24]} 37. f4 {[%emt 0:07:11]} Bc7 {[%emt 0:00:29]} 38. h4 {[%emt 0:00:40]} Bb6 {[%emt 0:00:17]} 39. a4 {[%emt 0:00:52]} Ke7 {[%emt 0:00:14]} 40. Bg8 {[%emt 0:02:21] Strongly threatening Bh7.} Kf8 {[%emt 0:00:05]} 41. Bc4 {[%emt 0:00:47]} Ke7 {[%emt 0:00:07]} 42. Bd5 {[%emt 0:00:12]} Ba5 {[%emt 0:00:19]} 43. Bg8 {[%emt 0:02:14]} Kf8 {[%emt 0:00:04]} 44. Bd5 {[%emt 0:00:33]} Ke7 {[%emt 0:00:03]} 45. Ke3 {[%emt 0:00:13]} Bb6+ {[%emt 0:00:13]} 46. Ke2 {[%emt 0:00:30]} Ba5 {[%emt 0:00:37] Weighted Error Value: White=0.11 (very precise) /Black=0.13 (very precise)} 1/2-1/2

[Event "Chessable English Open-ch 2022"]
[Site "Kenilwoth"]
[Date "2022.05.21"]
[Round "6.1"]
[White "Harvey, Marcus R"]
[Black "Hebden, Mark L"]
[Result "0-1"]
[ECO "A69"]
[WhiteElo "2455"]
[BlackElo "2452"]
[Annotator "TA"]
[PlyCount "54"]
[EventDate "2022.05.18"]
[EventType "swiss"]
[EventCountry "ENG"]
[SourceTitle "playchess.com"]
[Source "ChessBase"]
[SourceQuality "1"]
[TimeControl "5400+30"]

{[%evp 22,53,20,14,23,31,32,45,41,37,39,22,3,0,0,0,0,0,0,0,0,0,-6,0,0,0,0,0,0,-843,-883,-29992,-29993,-29999]} 1. c4 {[%emt 0:00:16]} g6 {[%emt 0:01:02]} 2. d4 {[%emt 0:00:04]} Nf6 {[%emt 0:01:15]} 3. Nc3 {[%emt 0:00:31]} Bg7 {[%emt 0:00:30]} 4. e4 {[%emt 0:00:03]} d6 {[%emt 0:00:13]} 5. f4 {[%emt 0:00:03]} c5 {[%emt 0:01:00]} 6. d5 {[%emt 0:00:08]} O-O {[%emt 0:00:44]} 7. Nf3 {[%emt 0:00:03]} e6 {[%emt 0:00:21]} 8. Be2 {[%emt 0:00:04]} exd5 {[%emt 0:01:44]} 9. cxd5 {[%emt 0:00:14]} Nbd7 {[%emt 0:00:34]} 10. O-O {[%emt 0:00:22]} Re8 {[%emt 0:00:34]} 11. Qc2 {[%emt 0:00:15]} a6 {[%emt 0:02:34]} 12. a4 $1 {[%emt 0:00:09]} Qa5 {[%emt 0:02:24][%cal Oc5c4] [#] A69: Modern Benoni: Four Pawns Attack with 9...Re8.} 13. Ra3 $146 {[%emt 0:00:27]} ({Predecessor:} 13. Bd2 c4 14. h3 Qb6+ 15. Kh1 Nc5 16. Be3 Qb3 17. Qxb3 Nxb3 18. Ra3 Nxe4 19. Nxe4 Rxe4 20. Bxc4 {0-1 (28) Kang,D (1883)-Krnan,T (2432) Aurora 2018}) 13... c4 {[%emt 0:01:40]} 14. Nd2 {[%emt 0:14:20]} Nb6 {[%emt 0:03:35][%cal Rf6d5] White is slightly better.} 15. Kh1 {[%emt 0:03:33]} Bd7 {[%emt 0:10:05]} 16. Nxc4 {[%emt 0:13:55]} ({Of course not} 16. Bxc4 Nxc4 17. Nxc4 Qc7 $11) 16... Nxc4 {[%emt 0:00:14]} 17. Bxc4 {[%emt 0:00:04]} Qc5 {[%emt 0:05:34]} 18. Bd3 {[%emt 0:01:53]} Rac8 {[%emt 0:01:37]} 19. a5 {[%emt 0:23:59]} Bb5 $36 {[%emt 0:06:38][%mdl 2048] Black has the initiative.} 20. Nxb5 {[%emt 0:02:27]} Qxc2 {[%emt 0:00:20]} 21. Bxc2 {[%emt 0:00:03]} axb5 {[%emt 0:00:07]} 22. Bd3 {[%emt 0:07:13]} Nxe4 {[%emt 0:02:24][%cal Oc8c1,Bf6e4,Be4f2,Bf2g4][%mdl 32] [#] Hoping for ...Rxc1!} 23. Bxb5 {[%emt 0:02:02]} Nf2+ {[%emt 0:06:10]} 24. Kg1 {[%emt 0:00:24]} Bd4 {[%emt 0:00:26] Strongly threatening ...Nd1+.} 25. g3 $2 {[%emt 0:01:46][%mdl 8192]} (25. Bxe8 $11 Nh3+ 26. Kh1 Nf2+ 27. Kg1 Nh3+ 28. Kh1 Nf2+ 29. Kg1) 25... Ng4+ $19 {[%emt 0:01:15]} 26. Kh1 {[%emt 0:11:34] [#]} Rc2 $1 {[%emt 0:00:26][%csl Gg4,LRb2,LRh2][%cal Rc2h2]} 27. Bxe8 {[%emt 0:00:07]} (27. Be3 Rxe3) 27... Rxh2# {[%emt 0:00:37] Weighted Error Value: White=0.81/Black=0.01 (flawless)} 0-1

[Event "Chessable English Open-ch 2022"]
[Site "Kenilwoth"]
[Date "2022.05.21"]
[Round "6.2"]
[White "Arkell, Keith C"]
[Black "Roberson, Peter T"]
[Result "1/2-1/2"]
[ECO "A35"]
[WhiteElo "2367"]
[BlackElo "2421"]
[Annotator "TA"]
[PlyCount "37"]
[EventDate "2022.05.18"]
[EventType "swiss"]
[EventCountry "ENG"]
[SourceTitle "playchess.com"]
[Source "ChessBase"]
[SourceQuality "1"]
[TimeControl "5400+30"]

{[%evp 15,37,8,10,0,0,-8,17,7,15,0,14,0,0,-16,13,12,20,0,14,0,0,-22,-23,-24]} 1. Nf3 {[%emt 0:00:14]} c5 {[%emt 0:00:21]} 2. c4 {[%emt 0:00:05]} Nc6 {[%emt 0:00:17]} 3. Nc3 {[%emt 0:00:07]} g6 {[%emt 0:00:06]} 4. e3 {[%emt 0:01:33]} Nf6 {[%emt 0:01:00]} 5. d4 {[%emt 0:00:05]} cxd4 {[%emt 0:00:04]} 6. exd4 {[%emt 0:00:03]} d5 {[%emt 0:00:07]} 7. cxd5 {[%emt 0:00:07]} Nxd5 {[%emt 0:00:05]} 8. Qb3 {[%emt 0:03:48]} e6 {[%emt 0:02:13]} 9. Bg5 {[%emt 0:07:21] A35: Symmetrical English: 2 Nc3 Nc6 3 Nf3.} Be7 {[%emt 0:04:36]} 10. Bxe7 {[%emt 0:01:45]} Ncxe7 {[%emt 0:02:40]} 11. Bb5+ {[%emt 0:02:25] The position is equal.} Kf8 {[%emt 0:02:10]} 12. O-O {[%emt 0:00:23]} Kg7 {[%emt 0:00:36] [#]} 13. Bc4 $146 {[%emt 0:04:39]} ({Predecessor:} 13. Rac1 Rf8 14. Rfd1 Nf6 15. Ne5 Rb8 16. Be2 {½-½ (50) Jones,G (2660)-Saric,I (2632) Linares 2017}) 13... Nb6 {[%emt 0:08:18]} 14. Rfd1 {[%emt 0:02:59]} Qc7 {[%emt 0:17:02]} 15. Bd3 {[%emt 0:00:50]} Bd7 {[%emt 0:02:13]} 16. Rac1 {[%emt 0:04:33]} Rac8 {[%emt 0:05:13]} 17. Ne5 {[%emt 0:25:49]} Rhd8 {[%emt 0:19:10]} 18. Qa3 {[%emt 0:10:13][%csl LRa7,LRe7]} Be8 {[%emt 0:02:53]} 19. Be4 {[%emt 0:08:22] An even fight not without its subleties.  Weighted Error Value: White=0.08 (flawless) /Black=0.05 (flawless)} ({Reject} 19. Qxa7 Ra8 20. Nb5 Qxc1 21. Rxc1 Rxa7 22. Nxa7 Rxd4 $15) 1/2-1/2

[Event "Chessable English Open-ch 2022"]
[Site "Kenilwoth"]
[Date "2022.05.21"]
[Round "6.3"]
[White "Boswell, Jacob Connor"]
[Black "Willow, Jonah B"]
[Result "1/2-1/2"]
[ECO "A13"]
[WhiteElo "2075"]
[BlackElo "2401"]
[Annotator "TA"]
[PlyCount "242"]
[EventDate "2022.05.18"]
[EventType "swiss"]
[EventCountry "ENG"]
[SourceTitle "playchess.com"]
[Source "ChessBase"]
[SourceQuality "1"]
[TimeControl "5400+30"]

{[%evp 13,242,0,0,0,0,0,12,0,0,0,0,0,0,0,0,0,0,0,0,0,0,-21,0,-10,0,-10,-17,-16,-10,-10,-19,-28,-31,-25,0,0,1,0,0,0,0,0,0,0,0,0,0,0,0,0,0,0,8,15,25,-8,0,0,0,0,0,0,0,0,0,0,0,0,0,0,0,0,0,0,0,0,0,0,0,0,0,0,12,12,12,12,12,12,12,12,13,12,12,12,12,12,12,12,12,12,12,12,12,12,12,12,12,12,12,12,12,12,12,12,12,12,12,12,80,12,12,12,12,12,12,12,12,12,12,12,12,12,12,0,0,0,0,0,12,12,12,0,0,0,0,0,0,0,0,0,0,0,0,0,0,0,0,0,0,0,0,0,0,0,0,0,0,0,0,0,0,0,0,0,0,0,0,0,0,0,0,0,0,0,0,0,0,0,0,0,0,0,0,0,0,0,0,0,0,0,0,0,0,0,0,0,0,0,0,0,0,0,0,0,0,0,0,0,0,0,0,0,0,0,0,0,0,0,0,0,0]} 1. Nf3 {[%emt 0:02:59]} d5 {[%emt 0:00:33]} 2. e3 {[%emt 0:00:10]} Nf6 {[%emt 0:00:36]} 3. c4 {[%emt 0:00:24]} e6 {[%emt 0:00:29]} 4. Nc3 {[%emt 0:00:25]} Be7 {[%emt 0:01:27]} 5. b3 {[%emt 0:01:06]} O-O {[%emt 0:01:48]} 6. Bb2 {[%emt 0:04:39]} c5 {[%emt 0:00:16]} 7. cxd5 {[%emt 0:00:41]} Nxd5 {[%emt 0:00:06]} 8. Nxd5 {[%emt 0:00:58] A13: English Opening: 1...e6.} exd5 {[%emt 0:00:06]} 9. d4 {[%emt 0:01:36]} Nc6 {[%emt 0:00:04]} 10. Be2 {[%emt 0:04:11]} (10. dxc5 {feels hotter.} Bxc5 11. Bd3 Bb4+ 12. Ke2) 10... cxd4 {[%emt 0:00:39]} 11. Nxd4 {[%emt 0:01:15]} Qa5+ {[%emt 0:00:08]} 12. Kf1 {[%emt 0:00:49]} Nxd4 {[%emt 0:01:10]} 13. Bxd4 {[%emt 0:01:14]} (13. Qxd4 $2 Bf6 14. b4 Bxd4 $19) 13... Bf5 {[%emt 0:03:41]} 14. Bd3 {[%emt 0:12:50]} Be4 {[%emt 0:01:39]} 15. Bxe4 {[%emt 0:08:06]} dxe4 {[%emt 0:01:08] [#]} 16. g3 $146 {[%emt 0:04:43]} ({Predecessor:} 16. Qg4 Bf6 17. Qxe4 Qa6+ 18. Kg1 Rfe8 19. Qf4 Bxd4 20. Qxd4 Rad8 21. Qb2 Rd5 22. h4 {1-0 (49) Nakamura,H (2761)-So,W (2754) Abidjan 2019}) 16... Qf5 {[%emt 0:09:46] Against Qg4} 17. Kg2 {[%emt 0:02:25] Prevents Qh3+.} Rfc8 {[%emt 0:06:54][%cal Bf8c8,Bc8c6,Bc6d6][%mdl 32]} (17... Rac8 $5 {[%cal Rc8c6]}) 18. Qe2 {[%emt 0:05:29]} Ba3 {[%emt 0:03:03]} 19. Rab1 {[%emt 0:05:51]} Rc6 {[%emt 0:02:29]} 20. Bb2 {[%emt 0:01:58]} Bxb2 {[%emt 0:06:25]} 21. Rxb2 {[%emt 0:00:10]} Rd8 {[%emt 0:15:53]} 22. Rbb1 {[%emt 0:12:50]} Rcd6 {[%emt 0:01:45]} 23. Rb2 {[%emt 0:03:29] Against Rd2} g5 {[%emt 0:09:13]} 24. h3 {[%emt 0:06:07] Against g4} h5 {[%emt 0:10:06]} 25. Qxh5 {[%emt 0:05:04]} Rd2 {[%emt 0:00:49]} 26. Rxd2 {[%emt 0:00:09]} Rxd2 $11 {[%emt 0:00:02][%csl Gd2][%cal Rf5f2][%mdl 4096] [#] Endgame KQR-KQR} 27. Rf1 {[%emt 0:00:22]} Rxa2 {[%emt 0:06:05]} 28. Qd1 {[%emt 0:02:59]} a5 {[%emt 0:04:00]} 29. Qd8+ {[%emt 0:03:16]} Kh7 {[%emt 0:00:12]} 30. g4 {[%emt 0:01:41]} Qf3+ {[%emt 0:03:32]} 31. Kg1 {[%emt 0:00:09]} Qxh3 {[%emt 0:00:08]} 32. Qxg5 {[%emt 0:00:11]} Qh6 {[%emt 0:00:05]} 33. Qf5+ {[%emt 0:03:36]} Qg6 {[%emt 0:00:07]} 34. Qd7 {[%emt 0:00:58]} (34. Qf4 {with more complications.} Kg7 35. Kg2 Qf6 36. Qxe4 b6 37. Qd5) 34... Qe6 {[%emt 0:03:35]} (34... b6 {looks sharper.} 35. f4 Re2 36. Rd1 Rxe3 37. Rd6 Rd3) 35. Qxe6 {[%emt 0:02:17]} fxe6 {[%emt 0:00:01] KR-KR} 36. Rc1 {[%emt 0:00:12]} b5 {[%emt 0:02:47]} 37. Rc5 {[%emt 0:00:12]} b4 {[%emt 0:00:05]} 38. Re5 {[%emt 0:00:58]} Ra3 {[%emt 0:02:47]} 39. Kg2 {[%emt 0:00:27]} ({But not} 39. Rxe4 $2 Rxb3 40. Rxe6 Rb1+ 41. Kg2 b3 $19) 39... Kg7 {[%emt 0:01:06]} 40. g5 {[%emt 0:00:48]} Kg6 {[%emt 0:00:43]} 41. Kh3 {[%emt 0:00:43]} Rxb3 {[%emt 0:01:15]} 42. Rxa5 {[%emt 0:00:07]} Rb2 {[%emt 0:00:12]} 43. Kg3 {[%emt 0:00:14]} Rd2 {[%emt 0:01:21]} 44. Re5 {[%emt 0:00:59][%csl LRe4,LRe6]} Rd6 {[%emt 0:01:01]} 45. Rb5 {[%emt 0:00:55] Prevents Rb6.} Rd5 {[%emt 0:00:03]} 46. Rxb4 {[%emt 0:00:26]} Rxg5+ {[%emt 0:00:01]} 47. Kf4 {[%emt 0:01:46]} Kf6 {[%emt 0:01:42]} 48. Rxe4 {[%emt 0:00:49]} Rf5+ {[%emt 0:00:22]} 49. Kg3 {[%emt 0:00:07]} Rg5+ {[%emt 0:00:05]} 50. Kf3 {[%emt 0:00:21]} Ra5 {[%emt 0:00:10]} 51. Rb4 {[%emt 0:00:49]} Ke5 {[%emt 0:01:15]} 52. Rh4 {[%emt 0:00:26] [#] White wants to mate with Rh5+.} Ra2 {[%emt 0:00:40]} 53. Rh5+ {[%emt 0:00:09]} Kf6 {[%emt 0:00:06]} 54. e4 {[%emt 0:00:33]} Kg6 {[%emt 0:00:14]} 55. Rb5 {[%emt 0:00:32]} Kf6 {[%emt 0:00:35]} 56. Kg3 {[%emt 0:00:07]} Ra1 {[%emt 0:01:54]} 57. f3 {[%emt 0:00:36]} Ra3 {[%emt 0:00:56]} 58. Kf4 {[%emt 0:00:19]} Ra4 {[%emt 0:00:10]} 59. Rh5 {[%emt 0:00:36]} Kg6 {[%emt 0:01:32]} 60. Rh8 {[%emt 0:00:30] Ke5 is the strong threat.} Kg7 {[%emt 0:00:47]} 61. Rb8 {[%emt 0:00:21]} Kf6 {[%emt 0:00:08]} 62. Kg4 {[%emt 0:00:43]} Ra1 {[%emt 0:00:22]} 63. Rb5 {[%emt 0:00:41]} Ra4 {[%emt 0:00:19]} 64. Rb1 {[%emt 0:00:21]} Ra2 {[%emt 0:01:19]} 65. f4 {[%emt 0:00:38]} Ra6 {[%emt 0:00:30]} (65... Ke7 $11) 66. Rb7 {[%emt 0:00:51]} (66. e5+ $16 Ke7 67. Kg5) 66... Ra1 {[%emt 0:00:21] The position is equal.} 67. Rb6 {[%emt 0:00:47] And now f5 would win.} ({Much less strong is} 67. e5+ Kg6 $14) 67... Rg1+ {[%emt 0:00:12]} 68. Kf3 {[%emt 0:00:06] Hoping for f5.} Rf1+ {[%emt 0:00:14]} 69. Ke3 {[%emt 0:00:01] aiming for f5.} Re1+ {[%emt 0:00:10]} 70. Kd3 {[%emt 0:00:01] Black must now prevent f5.} Kf7 {[%emt 0:01:10]} 71. Kd4 {[%emt 0:00:48]} Ra1 {[%emt 0:00:24]} 72. Rb5 {[%emt 0:00:48]} Kf6 {[%emt 0:00:07]} 73. Rh5 {[%emt 0:00:26]} Ra4+ {[%emt 0:00:06]} 74. Ke3 {[%emt 0:00:05]} Ra3+ {[%emt 0:00:06]} 75. Kf2 {[%emt 0:00:15]} Rb3 {[%emt 0:00:49]} 76. Rh6+ {[%emt 0:01:00]} Kf7 {[%emt 0:00:14]} 77. Kg2 {[%emt 0:00:41]} Re3 {[%emt 0:00:26]} 78. e5 {[%emt 0:00:10]} Ra3 {[%emt 0:00:08]} 79. Rh3 {[%emt 0:01:50]} Ra2+ {[%emt 0:00:59]} 80. Kg3 {[%emt 0:00:01]} Kg6 {[%emt 0:00:21]} 81. Kf3 {[%emt 0:00:58]} Ra3+ {[%emt 0:00:12]} 82. Kg4 {[%emt 0:00:08]} Ra1 {[%emt 0:00:11]} 83. Rg3 {[%emt 0:00:29]} Rf1 {[%emt 0:00:28]} 84. Rg2 {[%emt 0:00:20]} Ra1 {[%emt 0:00:35]} ({Don't do} 84... Kf7 85. Ra2 $14) 85. Kf3+ {[%emt 0:00:22]} Kf7 {[%emt 0:00:01]} 86. Rd2 {[%emt 0:00:59]} Rf1+ {[%emt 0:00:23]} 87. Ke4 {[%emt 0:00:25]} Re1+ {[%emt 0:00:04]} 88. Kd4 {[%emt 0:00:01]} Rf1 {[%emt 0:00:05]} 89. Ke3 {[%emt 0:00:08]} Re1+ {[%emt 0:00:08]} 90. Kf2 {[%emt 0:00:25]} Ra1 {[%emt 0:00:21]} 91. Rd8 {[%emt 0:00:22]} Ra3 {[%emt 0:00:31]} 92. Ke2 {[%emt 0:01:14]} Rb3 {[%emt 0:00:25]} 93. Rd3 {[%emt 0:00:06]} Rb1 {[%emt 0:00:08]} 94. Kf3 {[%emt 0:02:11]} Rf1+ {[%emt 0:01:23]} 95. Kg4 {[%emt 0:00:00]} Rg1+ {[%emt 0:01:09]} 96. Kh4 {[%emt 0:00:00]} Rh1+ {[%emt 0:00:16]} 97. Rh3 {[%emt 0:00:00]} Rf1 {[%emt 0:00:50]} 98. Kg4 {[%emt 0:00:14]} Rg1+ {[%emt 0:01:06]} 99. Kf3 {[%emt 0:00:21]} Rf1+ {[%emt 0:00:24]} 100. Ke3 {[%emt 0:00:10]} Re1+ {[%emt 0:00:17]} 101. Kf2 {[%emt 0:00:10]} Ra1 {[%emt 0:00:09]} 102. Rh6 {[%emt 0:00:37]} Ra3 {[%emt 0:00:07]} 103. Rf6+ {[%emt 0:00:10]} Ke7 {[%emt 0:00:00]} 104. Kg2 {[%emt 0:00:02]} Rb3 {[%emt 0:00:25]} 105. Rh6 {[%emt 0:00:16]} Kf7 {[%emt 0:00:08]} 106. Rh3 {[%emt 0:00:05]} Rb1 {[%emt 0:00:38]} 107. Kf3 {[%emt 0:04:25]} Rf1+ {[%emt 0:00:19]} 108. Ke4 {[%emt 0:00:00]} Re1+ {[%emt 0:00:13]} 109. Re3 {[%emt 0:00:00]} Ra1 {[%emt 0:00:26]} 110. Rd3 {[%emt 0:00:00]} Re1+ {[%emt 0:00:43]} 111. Kd4 {[%emt 0:00:03]} Kg6 {[%emt 0:01:54]} 112. Kc5 {[%emt 0:01:14]} Kf5 {[%emt 0:00:07]} 113. Rd4 {[%emt 0:00:48]} Ra1 {[%emt 0:00:38]} 114. Kd6 {[%emt 0:00:43]} Ra6+ {[%emt 0:00:33]} 115. Ke7 {[%emt 0:00:15]} Ra7+ {[%emt 0:00:39]} 116. Rd7 {[%emt 0:00:31]} Ra6 {[%emt 0:00:51]} 117. Kf7 {[%emt 0:00:32]} Ra4 {[%emt 0:01:22]} 118. Re7 {[%emt 0:00:27]} Rxf4 {[%emt 0:00:45]} 119. Rxe6 {[%emt 0:00:21]} Re4 {[%emt 0:00:01]} 120. Rf6+ {[%emt 0:00:28]} Kxe5 {[%emt 0:00:04]} 121. Re6+ {[%emt 0:00:12]} Kd4 {[%emt 0:00:04] Weighted Error Value: White=0.02 (flawless) /Black=0.02 (flawless)} 1/2-1/2